Cogmind - Beta 12 @@@ ROGUE MODE // 2023.08.02 @ 14:37:18 Player: Triffids Result: Destroyed by D-53 Grenadier with Mini Grenade Launcher Performance ------------- Evolutions (0) 0 Regions Visited (2) 400 Robots Destroyed (12) 60 Value Destroyed (210) 210 Prototype IDs (0) 0 Alien Tech Used (0) 0 Bonus (0) 0 TOTAL SCORE: 670 Bonus ------- None Cogmind --------- Core Integrity 0/250 Matter 295/300 Energy 250/250 System Corruption 0% Temperature Cool (0) Movement Walking (120) Location -10/Mines Parts ------- > --- POWER (1) -------- Ion Engine > --- PROPULSION (2) --- Aluminum Leg Aluminum Leg > --- UTILITY (2) ------ Small Storage Unit Seismic Detector > --- WEAPON (2) ------- (None) > --- INVENTORY (8) ---- Ion Engine Aluminum Leg Improved Terrain Scanner Improved Terrain Scanner Particle Gun Assault Rifle Rocket Launcher Peak State ------------ > --- POWER ------------ Ion Engine > --- PROPULSION ------- Aluminum Leg Aluminum Leg > --- UTILITY ---------- Small Storage Unit Seismic Detector > --- WEAPON ----------- Assault Rifle Assault Rifle > --- INVENTORY -------- Ion Engine Aluminum Leg Improved Terrain Scanner Improved Terrain Scanner Particle Gun Assault Rifle Rocket Launcher [Rating: 8] Favorites ----------- Power Ion Engine Engine Ion Engine Propulsion Aluminum Leg Leg Aluminum Leg Utility Small Storage Unit Device Seismic Detector Storage Small Storage Unit Protection Light Armor Plating Weapon Assault Rifle Ballistic Gun Assault Rifle Build | -11 -10 -10 ------- Run | Jun Mat Min Slots Evolved . | . . . Power . | . . . Propulsion . | . . . Utility . | . . . Weapon . | . . . Parts Attached 9 | 6 1 2 Power 1 | 1 . . Engine 1 | 1 . . Core . | . . . Reactor . | . . . Propulsion 3 | 2 . 1 Treads . | . . . Leg 3 | 2 . 1 Wheel . | . . . Hover . | . . . Flight . | . . . Utility 3 | 1 1 1 Device 1 | . . 1 Storage 1 | 1 . . Processor . | . . . Hackware . | . . . Protection 1 | . 1 . Artifact . | . . . Weapon 2 | 2 . . Energy Gun . | . . . Energy Cannon . | . . . Ballistic Gun 2 | 2 . . Ballistic Cannon . | . . . Launcher . | . . . Special Weapon . | . . . Impact Weapon . | . . . Slashing Weapon . | . . . Piercing Weapon . | . . . Special Melee Weapon . | . . . Unidentified Prototypes . | . . . Parts Lost 3 | . . 3 Power . | . . . Propulsion . | . . . Utility 1 | . . 1 Weapon 2 | . . 2 Highest Loss Streak 2 | . . 2 To Critical Strikes . | . . . Average Slot Usage (%) 95 | . 96 95 Engine 14 | . 14 14 Leg 28 | . 28 28 Device 1 | . . 2 Storage 14 | . 14 14 Protection 8 | . 10 8 Ballistic Gun 27 | . 28 27 Naked Turns . | . . . Heaviest Build 17 | 14 17 17 Greatest Support 20 | 20 20 20 Greatest Overweight (x) 1 | 1 . . Average Overweight (x) . | . . . Largest Inventory Capacity 8 | 8 8 8 Average Capacity 7 | 7 8 8 Most Carried 8 | 5 2 8 Average Carried 3 | 2 2 4 Final Capacity 8 | 8 8 8 Final Carried 7 | 2 2 7 Class Distribution -------------------- 100% | Mutant Dominant Class ---------------- Mutant | -10/Materials Mutant | -10/Mines Resources | -11 -10 -10 ----------- Run | Jun Mat Min Matter Collected 579 | 290 14 275 Remotely . | . . . Salvage Created 374 | 101 45 228 Parts 27 | 15 6 6 Haulers Intercepted . | . . . Recyclers Shooed 2 | 1 1 . Parts Field Recycled . | . . . Retrieved Matter . | . . . Parts Self-Destructed . | . . . Prevented . | . . . Kills | -11 -10 -10 ------- Run | Jun Mat Min Combat Hostiles Destroyed 11 | . 3 8 Guns 11 | . 3 8 Classes Destroyed 4 | 1 1 2 Tunneler 6 | 5 . 1 Swarmer 3 | . 3 . Grunt 3 | . . 3 Assembled 5 | . . 5 Best Kill Streak 5 | 5 3 4 Combat Bots Only 4 | . 3 4 Max Kills in Single Turn 2 | 2 1 1 Gunslinging . | . . . Exploded . | . . . Melee . | . . . Uniques/NPCs Destroyed . | . . . Combat | -11 -10 -10 -------- Run | Jun Mat Min Damage Taken 822 | . 62 760 Core 252 | . . 252 Absorbed by Shields . | . . . Core Remaining (%) 100 | 100 . . Volleys Fired 52 | 5 6 41 Largest 2 | 2 2 2 Hottest 40 | 40 40 40 Shots Fired 103 | 10 12 81 Gun 103 | 10 12 81 Cannon . | . . . Launcher . | . . . Special . | . . . Kinetic 103 | 10 12 81 Thermal . | . . . Explosive . | . . . Electromagnetic . | . . . Robot Hit Streak 10 | 3 3 10 Robot Miss Streak 4 | 1 3 4 Penetration Max . | . . . Secondary Targets . | . . . Shots Hit Robots 58 | 6 5 47 Core Hits 27 | 5 5 17 Critical Kills 1 | 1 . . Critical Parts Destroyed . | . . . Critical Strikes 1 | 1 . . Destroy 1 | 1 . . Melee Attacks . | . . . Impact . | . . . Slashing . | . . . Piercing . | . . . Sneak Attacks . | . . . Combat Hostiles . | . . . Follow-up Attacks . | . . . Damage Inflicted 763 | 86 96 581 Guns 735 | 86 68 581 Cannons . | . . . Explosions 28 | . 28 . Melee . | . . . Ramming . | . . . Kinetic 735 | 86 68 581 Thermal . | . . . Explosive . | . . . Electromagnetic 28 | . 28 . Impact . | . . . Slashing . | . . . Piercing . | . . . Highest Corruption . | . . . Average Corruption . | . . . Corruption Purged . | . . . Corruption Blocked . | . . . Overload Shots . | . . . Overflow Damage . | . . . Projectiles . | . . . Explosions . | . . . Melee . | . . . Knockbacks . | . . . Impact . | . . . Kinetic . | . . . Secondary . | . . . Self-Inflicted Damage . | . . . Shots . | . . . Rammed . | . . . Targets Rammed . | . . . Kicked . | . . . Crushed . | . . . Highest Temperature 48 | . . 48 Average Temperature 19 | . . 19 Received Heat Transfer 345 | . . 345 Siege Activations . | . . . Robots Corrupted . | . . . Combat Hostiles . | . . . Parts Fried . | . . . Impact Corruptions . | . . . Robots Melted . | . . . Combat Hostiles . | . . . Parts Melted . | . . . Heat Transferred . | . . . Parts Sabotaged . | . . . Parts Stolen . | . . . Parts Stripped . | . . . Power Chain Reactions . | . . . Missiles Intercepted . | . . . Alert | -11 -10 -10 ------- Run | Jun Mat Min Peak Influence 112 | 25 112 110 Initial 43 | . 16 43 Average 49 | 8 30 61 Maximum Alert Level . | . . . Low Security (%) 100 | 100 100 100 Level 1 . | . . . Level 2 . | . . . Level 3 . | . . . Level 4 . | . . . Level 5 . | . . . High Security . | . . . Max Security . | . . . Squads Dispatched . | . . . Investigation . | . . . Extermination . | . . . Reinforcement . | . . . Assault . | . . . Garrison . | . . . Intercept . | . . . Searches Triggered . | . . . Construction Impeded . | . . . Haulers Reinforced . | . . . Active Scanning Responses . | . . . Cargo Convoy Interrupts . | . . . Stealth | -11 -10 -10 --------- Run | Jun Mat Min Distress Signals . | . . . Communications Jammed . | . . . Distress Signals . | . . . Times Spotted 24 | . 4 20 Peak Tracking Total 7 | . 3 7 Tactical Retreats 4 | . . 4 Traps | -11 -10 -10 ------- Run | Jun Mat Min Traps Triggered . | . . . Indirectly . | . . . Trap Hack Attempts . | . . . Triggered . | . . . Disarmed . | . . . Reprogrammed . | . . . Reused . | . . . Traps Extracted . | . . . Installed . | . . . Triggered . | . . . Machines | -11 -10 -10 ---------- Run | Jun Mat Min Machines Disabled 1 | . 1 . Max in Single Turn 1 | . 1 . Machines Repaired . | . . . Machines Sabotaged . | . . . Overloaded Fab Kills . | . . . Hacking | -11 -10 -10 --------- Run | Jun Mat Min Machines Accessed 4 | . 4 . Terminals 4 | . 4 . Fabricators . | . . . Repair Stations . | . . . Recycling Units . | . . . Scanalyzers . | . . . Garrison Access . | . . . Total Hacks 12 | . 12 . Successful 5 | . 5 . Failed 7 | . 7 . Catastrophic . | . . . Database Lockouts . | . . . Manual 10 | . 10 . Terminals 12 | . 12 . Fabricators . | . . . Repair Stations . | . . . Recycling Units . | . . . Scanalyzers . | . . . Garrison Access . | . . . Terminal Hacks 2 | . 2 . Terminal Index 1 | . 1 . Locate Traps 1 | . 1 . Fabricator Hacks . | . . . Repair Station Hacks . | . . . Recycling Unit Hacks . | . . . Scanalyzer . | . . . Garrison Access Hacks . | . . . Unauthorized Hacks 3 | . 3 . Terminals 3 | . 3 . Track 1 | . 1 . Botnet 2 | . 2 . Fabricators . | . . . Repair Stations . | . . . Recycling Units . | . . . Scanalyzers . | . . . Garrison Access . | . . . Data Cores Recovered . | . . . Used . | . . . Hacking Detections 4 | . 4 . Full Trace Events . | . . . Feedback Events . | . . . Feedback Blocked . | . . . Robot Schematics Acquired . | . . . Robots Built . | . . . Authchips . | . . . Time . | . . . Total Robot Build Rating . | . . . Part Schematics Acquired . | . . . Parts Built . | . . . Authchips . | . . . Time . | . . . Total Part Build Rating . | . . . Parts Repaired . | . . . Time . | . . . Parts Recycled . | . . . Recycled Matter . | . . . Retrieved Matter . | . . . Retrieved Components . | . . . Parts Scanalyzed . | . . . Part Schematics Acquired . | . . . Parts Damaged . | . . . Bothacking | -11 -10 -10 ------------ Run | Jun Mat Min Used RIF Installer . | . . . Robots Hacked . | . . . Non-combat . | . . . Combat . | . . . Robot Hacks Applied . | . . . Relay Couplers Released . | . . . Fabnet Peak Effective % . | . . . Robots Rewired . | . . . Allies Hacked . | . . . Hacks Repelled . | . . . Allies | -11 -10 -10 -------- Run | Jun Mat Min Total Allies . | . . . Largest Group . | . . . Highest-Rated Group . | . . . Highest-Rated Ally . | . . . Total Orders . | . . . Ally Attacks . | . . . Total Damage . | . . . Kills . | . . . Allies Corrupted . | . . . Allies Melted . | . . . Intel | -11 -10 -10 ------- Run | Jun Mat Min Robot Analysis Total . | . . . Derelict Logs Recovered 1 | . . 1 Drone Launches . | . . . Drone Recoveries . | . . . Exploration | -11 -10 -10 ------------- Run | Jun Mat Min Turns Passed 994 | 74 251 669 Spaces Moved 662 | 46 177 439 Core 18 | 18 . . Treads . | . . . Legs 644 | 28 177 439 Wheels . | . . . Hover . | . . . Flight . | . . . Fastest Speed 50 | 50 120 120 Average Speed 118 | 100 120 120 Slowest Speed 120 | 120 120 120 Overloaded Moves . | . . . Propulsion Burnouts . | . . . Robots Hopped . | . . . Cave-ins Triggered . | . . . Exploration Rate (%) 34 | 5 38 61 Regions Visited 2 Branch Regions 1 Pre-discovered Areas . | . . . Known Exits Taken . | . . . Unknown Exits Taken 2 | 1 1 . Scrap Searched 1 | . . 1 Spaces Dug . | . . . Terrain Destroyed . | . . . Melee . | . . . Projectile . | . . . AOE . | . . . Terrain Rammed . | . . . Walls Destroyed . | . . . Machines Disabled . | . . . Actions | -11 -10 -10 --------- Run | Jun Mat Min Total 764 | 62 203 499 Wait 33 | 1 20 12 Move 660 | 45 176 439 Hop . | . . . Pick Up 10 | 5 . 5 Fast Attach 4 | 3 1 . Attach 4 | 3 . 1 Detach . | . . . Swap 1 | . . 1 Drop . | . . . Fire 52 | 5 6 41 Melee . | . . . Ram . | . . . Kick . | . . . Crush . | . . . Escape Stasis . | . . . Rewire . | . . . Trap . | . . . Miscellaneous . | . . . Route ------- -11/Junkyard -10/Materials -10/Mines History --------- Turn | Location | Event 11 | -11/Junkyard | Discovered new exit (range 16) 75 | -11/Junkyard | Entered Materials 151 | -10/Materials | Discovered new exit (range 16) 310 | -10/Materials | Build established: Mutant 326 | -10/Materials | Entered Mines 450 | -10/Mines | Assembled infested the area 455 | -10/Mines | Assisted by a Guerilla fighting off Assembled 463 | -10/Mines | Received a Rocket Launcher from a helpful Derelict 938 | -10/Mines | Core integrity fell below 50% 995 | -10/Mines | Destroyed by D-53 Grenadier with Mini Grenade Launcher Last Messages --------------- 00665_ Acquired Imp. Terrain Scanner. 00685_ Acquired 4 matter. 00729_ Lgt. Armor Plating destroyed. 00741_ G-34 Mercenary destroyed. 00756_ G-47 Trooper destroyed. 00761_ Acquired 36 matter. 00762_ Acquired 35 matter. 00764_ Acquired Particle Gun. 00859_ Acquired 12 matter. 00861_ Acquired 4 matter. 00862_ Acquired 2 matter. 00866_ Acquired Rocket Launcher. 00902_ Acquired 1 matter. 00913_ Acquired 9 matter. 00938_ The unstable cave ceiling collapses. 00970_ Acquired 15 matter. 00972_ Acquired 3 matter. 00980_ G-47 Trooper destroyed. 00986_ Assault Rifle destroyed. 00992_ The unstable cave ceiling collapses. Map ----- +----------------------------------------------------+ | ?????????#####?????????????????????? | | ???###++## ##????????????????????? | | ???# ##???????????????????? | | ???# #???????????????????? | | ??## #???????????????????? | | ?## #???????????????????? | | ?# #???????????????????? | | ?# #######?????????????? | | ??# #?????????????? | | ???# #### #?????????????? | | ???#### ##??# #?????????????? | | ??????## ###???# #?????????????? | | ???????## t##?????# ##########????# | | ????????# #??????# ###### | | ????????# #??????# | | ????????#u #??????########### | | ???????## %####?????????????######## | | ???????# #????????????????????? | | ???????# #????????????????????? | | ???????# #????????????????????? | | ???????# """ #????????????????????? | | ???????# #????????????????????? | | ???????# #????????????????????? | | ???????####%##########?????????????? | | ???????####! r #????????####?? | | ???????# @ ##### #???????# ##? | | ???????# #??# #?????## #? | | ???????# #??# #????## #? | | ???????# #??# ###### #? | | ??????# #??# =%* #?# | | ??????## ###??######## ### | | ????#### #?????????# ### | | ???## ## #????????## ### | | ???# ### ###?????#### ### | | ??## ## d ??????## ### | | ??# " # ????### ##?# | | ??# #??## ##?# | | ??# *% ##### #?## | | ???# #??## | | ???## =##???## | | ????## ####### =%#?????? | | ?????### #???## *!##????? | | ???????## #???# #????? | | ????????## ##??## """" #????? | | ?????????###???## """" #????? | | ?????????????### """" #????? | | ????????????## ##???? | | ????????????# ##??? | | ????????????# ##?? | | ????????????## ##? | +----------------------------------------------------+ Best States ------------- Heat Dissipation 25 Energy Generation 10 Energy Capacity 250 Matter Stores 300 Matter Capacity 300 Sight Range 16 Terrain Scan Density 10 Armor Coverage 150 Evasion (%) 55 Item Schematics ----------------- None Robot Schematics ------------------ None Fabricated ------------ Nothing Alien Tech Used ----------------- None Achievements -------------- None Challenges ------------ None Game ------ Seed SpliceZhirovGreatsword Manual? 0 Play Time 00:13:24 Cumulative 190.4 hours Start 2023.07.30 @ 21:53:00 End 2023.08.02 @ 14:37:18 Sessions 3 Manual Loads 0 Difficulty Rogue Special Mode None Game No. 285 Rogue 285 Adventurer 0 Explorer 0 Win Type - Total 0 Types 0/0/0/0/0/0/0/0/0 Lore% 48 Gallery% 55 Achievement% 38 Wizard Run 0 Options --------- ASCII 0 Keyboard 1 Movement Vi Keybinds 0 Fullscreen 0 Font 20/SmallcapsGlow Map View 76x50 Tactical HUD 1 Map Filters NONE Filters NONE Steam 1 RUN: 1f1fab43-00c6-44c5-8787-b61a78fc3261